Cogmind - Beta 12 @@@ ROGUE MODE // 2023.03.18 @ 02:15:20 Player: dhtilly Result: Destroyed by D-53 Grenadier with Mini Grenade Launcher Performance ------------- Evolutions (0) 0 Regions Visited (2) 400 Robots Destroyed (21) 105 Value Destroyed (334) 334 Prototype IDs (0) 0 Alien Tech Used (0) 0 Bonus (0) 0 TOTAL SCORE: 839 Bonus ------- None Cogmind --------- Core Integrity 0/250 Matter 300/300 Energy 100/100 System Corruption 1% Temperature Cool (1) Movement Flying (40) Location -10/Mines Parts ------- > --- POWER (1) -------- (None) > --- PROPULSION (2) --- Flight Unit > --- UTILITY (2) ------ Structural Scanner > --- WEAPON (2) ------- Light Assault Rifle > --- INVENTORY (5) ---- Light Ion Engine Flight Unit Small Storage Unit Light Armor Plating Grenade Launcher Peak State ------------ > --- POWER ------------ Improved Ion Engine > --- PROPULSION ------- Aluminum Leg Aluminum Leg > --- UTILITY ---------- Small Storage Unit Medium Armor Plating > --- WEAPON ----------- Assault Rifle Light Assault Rifle > --- INVENTORY -------- Improved Ion Engine Wheel Wheel Flight Unit Light Armor Plating Light Armor Plating Particle Gun Light Assault Rifle [Rating: 10] Favorites ----------- Power Improved Ion Engine Engine Improved Ion Engine Propulsion Aluminum Leg Leg Aluminum Leg Wheel Wheel Flight Unit Flight Unit Utility Small Storage Unit Device Structural Scanner Storage Small Storage Unit Protection Light Armor Plating Weapon Light Assault Rifle Ballistic Gun Light Assault Rifle Build | -11 -10 -10 ------- Run | Jun Mat Min Slots Evolved . | . . . Power . | . . . Propulsion . | . . . Utility . | . . . Weapon . | . . . Parts Attached 22 | 8 13 1 Power 2 | 1 1 . Engine 2 | 1 1 . Core . | . . . Reactor . | . . . Propulsion 8 | 3 4 1 Treads . | . . . Leg 4 | 2 2 . Wheel 3 | 1 2 . Hover . | . . . Flight 1 | . . 1 Utility 8 | 2 6 . Device 1 | . 1 . Storage 3 | 2 1 . Processor . | . . . Hackware . | . . . Protection 4 | . 4 . Artifact . | . . . Weapon 4 | 2 2 . Energy Gun . | . . . Energy Cannon . | . . . Ballistic Gun 4 | 2 2 . Ballistic Cannon . | . . . Launcher . | . . . Special Weapon . | . . . Impact Weapon . | . . . Slashing Weapon . | . . . Piercing Weapon . | . . . Special Melee Weapon . | . . . Unidentified Prototypes . | . . . Parts Lost 6 | . 3 3 Power 1 | . . 1 Propulsion 3 | . 2 1 Utility 1 | . 1 . Weapon 1 | . . 1 Highest Loss Streak 3 | . 1 3 To Critical Strikes . | . . . Average Slot Usage (%) 98 | . 98 98 Engine 13 | . 14 13 Leg 22 | . 23 13 Wheel 5 | . 3 14 Device 3 | . 1 14 Storage 13 | . 14 13 Protection 10 | . 12 . Ballistic Gun 27 | . 28 27 Naked Turns . | . . . Heaviest Build 93 | 13 93 91 Greatest Support 20 | 20 20 10 Greatest Overweight (x) 9 | . 9 9 Average Overweight (x) 3 | . 2 8 Largest Inventory Capacity 25 | 8 25 25 Average Capacity 15 | 7 13 24 Most Carried 12 | 4 11 12 Average Carried 8 | 2 7 10 Final Capacity 25 | 8 25 5 Final Carried 11 | 4 11 5 Class Distribution -------------------- 100% | Mutant Dominant Class ---------------- Mutant | -10/Materials Mutant | -10/Mines Resources | -11 -10 -10 ----------- Run | Jun Mat Min Matter Collected 679 | 163 459 57 Remotely . | . . . Salvage Created 596 | . 596 . Parts 43 | . 43 . Haulers Intercepted 2 | . 2 . Recyclers Shooed . | . . . Parts Field Recycled . | . . . Retrieved Matter . | . . . Parts Self-Destructed . | . . . Prevented . | . . . Kills | -11 -10 -10 ------- Run | Jun Mat Min Combat Hostiles Destroyed 15 | . 15 . Guns 15 | . 15 . Classes Destroyed 7 | . 7 . Worker 1 | . 1 . Hauler 2 | . 2 . Recycler 1 | . 1 . Mechanic 1 | . 1 . Operator 1 | . 1 . Swarmer 9 | . 9 . Grunt 6 | . 6 . Best Kill Streak 4 | . 4 . Combat Bots Only 3 | . 3 . Max Kills in Single Turn 2 | . 2 . Gunslinging 1 | . 1 . Exploded . | . . . Melee . | . . . Uniques/NPCs Destroyed . | . . . Combat | -11 -10 -10 -------- Run | Jun Mat Min Damage Taken 974 | . 645 329 Core 252 | . 82 170 Absorbed by Shields . | . . . Core Remaining (%) 100 | 100 . . Volleys Fired 62 | . 62 . Largest 2 | . 2 . Hottest 40 | . 40 . Shots Fired 124 | . 124 . Gun 124 | . 124 . Cannon . | . . . Launcher . | . . . Special . | . . . Kinetic 124 | . 124 . Thermal . | . . . Explosive . | . . . Electromagnetic . | . . . Robot Hit Streak 10 | . 10 . Robot Miss Streak 3 | . 3 . Penetration Max . | . . . Secondary Targets 2 | . 2 . Max Gunslinging Chain 1 | . 1 . Shots Hit Robots 73 | . 73 . Core Hits 33 | . 33 . Critical Kills 1 | . 1 . Critical Parts Destroyed . | . . . Critical Strikes 1 | . 1 . Destroy 1 | . 1 . Melee Attacks . | . . . Impact . | . . . Slashing . | . . . Piercing . | . . . Sneak Attacks . | . . . Combat Hostiles . | . . . Follow-up Attacks . | . . . Damage Inflicted 785 | . 785 . Guns 785 | . 785 . Cannons . | . . . Explosions . | . . . Melee . | . . . Ramming . | . . . Kinetic 785 | . 785 . Thermal . | . . . Explosive . | . . . Electromagnetic . | . . . Impact . | . . . Slashing . | . . . Piercing . | . . . Highest Corruption 1 | . 1 1 Average Corruption 1 | . 1 1 Corruption Purged . | . . . Corruption Blocked . | . . . Effects 10 | . 6 4 Message Errors 3 | . 2 1 Matter Fused 5 | . 3 2 Heat Flow Errors 1 | . . 1 Data Loss (major) 1 | . 1 . Overload Shots . | . . . Overflow Damage . | . . . Projectiles . | . . . Explosions . | . . . Melee . | . . . Knockbacks . | . . . Impact . | . . . Kinetic . | . . . Secondary . | . . . Self-Inflicted Damage . | . . . Shots . | . . . Rammed . | . . . Targets Rammed . | . . . Kicked . | . . . Crushed . | . . . Highest Temperature 224 | . 44 224 Average Temperature 18 | . 9 119 Received Heat Transfer 156 | . 156 . Siege Activations . | . . . Robots Corrupted . | . . . Combat Hostiles . | . . . Parts Fried . | . . . Impact Corruptions . | . . . Robots Melted . | . . . Combat Hostiles . | . . . Parts Melted . | . . . Heat Transferred . | . . . Parts Sabotaged . | . . . Parts Stolen . | . . . Parts Stripped . | . . . Power Chain Reactions . | . . . Missiles Intercepted . | . . . Alert | -11 -10 -10 ------- Run | Jun Mat Min Peak Influence 208 | . 208 81 Initial 81 | . . 81 Average 66 | . 67 79 Maximum Alert Level 1 | . 1 . Low Security (%) 99 | 100 99 100 Level 1 . | . . . Level 2 . | . . . Level 3 . | . . . Level 4 . | . . . Level 5 . | . . . High Security . | . . . Max Security . | . . . Squads Dispatched 3 | . 3 . Investigation 1 | . 1 . Extermination . | . . . Reinforcement 2 | . 2 . Assault . | . . . Garrison . | . . . Intercept . | . . . Searches Triggered . | . . . Construction Impeded . | . . . Haulers Reinforced . | . . . Active Scanning Responses . | . . . Cargo Convoy Interrupts . | . . . Stealth | -11 -10 -10 --------- Run | Jun Mat Min Distress Signals . | . . . Communications Jammed . | . . . Distress Signals . | . . . Times Spotted 33 | . 31 2 Peak Tracking Total 4 | . 4 2 Tactical Retreats 1 | . 1 . Traps | -11 -10 -10 ------- Run | Jun Mat Min Traps Triggered 5 | . 5 . Indirectly . | . . . Trap Hack Attempts . | . . . Triggered . | . . . Disarmed . | . . . Reprogrammed . | . . . Reused . | . . . Traps Extracted . | . . . Installed . | . . . Triggered . | . . . Machines | -11 -10 -10 ---------- Run | Jun Mat Min Machines Disabled . | . . . Max in Single Turn . | . . . Machines Repaired . | . . . Machines Sabotaged . | . . . Overloaded Fab Kills . | . . . Hacking | -11 -10 -10 --------- Run | Jun Mat Min Machines Accessed 1 | . 1 . Terminals 1 | . 1 . Fabricators . | . . . Repair Stations . | . . . Recycling Units . | . . . Scanalyzers . | . . . Garrison Access . | . . . Total Hacks 2 | . 2 . Successful 2 | . 2 . Failed . | . . . Catastrophic . | . . . Database Lockouts . | . . . Manual 2 | . 2 . Terminals 2 | . 2 . Fabricators . | . . . Repair Stations . | . . . Recycling Units . | . . . Scanalyzers . | . . . Garrison Access . | . . . Terminal Hacks 1 | . 1 . Level Access Points 1 | . 1 . Fabricator Hacks . | . . . Repair Station Hacks . | . . . Recycling Unit Hacks . | . . . Scanalyzer . | . . . Garrison Access Hacks . | . . . Unauthorized Hacks 1 | . 1 . Terminals 1 | . 1 . Botnet 1 | . 1 . Fabricators . | . . . Repair Stations . | . . . Recycling Units . | . . . Scanalyzers . | . . . Garrison Access . | . . . Data Cores Recovered . | . . . Used . | . . . Hacking Detections 1 | . 1 . Full Trace Events . | . . . Feedback Events . | . . . Feedback Blocked . | . . . Robot Schematics Acquired . | . . . Robots Built . | . . . Authchips . | . . . Time . | . . . Total Robot Build Rating . | . . . Part Schematics Acquired . | . . . Parts Built . | . . . Authchips . | . . . Time . | . . . Total Part Build Rating . | . . . Parts Repaired . | . . . Time . | . . . Parts Recycled . | . . . Recycled Matter . | . . . Retrieved Matter . | . . . Retrieved Components . | . . . Parts Scanalyzed . | . . . Part Schematics Acquired . | . . . Parts Damaged . | . . . Bothacking | -11 -10 -10 ------------ Run | Jun Mat Min Used RIF Installer . | . . . Robots Hacked . | . . . Non-combat . | . . . Combat . | . . . Robot Hacks Applied . | . . . Relay Couplers Released . | . . . Fabnet Peak Effective % . | . . . Robots Rewired . | . . . Allies Hacked . | . . . Hacks Repelled . | . . . Allies | -11 -10 -10 -------- Run | Jun Mat Min Total Allies 1 | . . 1 Largest Group 1 | . . 1 Highest-Rated Group 31 | . . 31 Highest-Rated Ally 31 | . . 31 Total Orders . | . . . Ally Attacks 3 | . . 3 Total Damage 22 | . . 22 Kills . | . . . Allies Corrupted . | . . . Allies Melted . | . . . Intel | -11 -10 -10 ------- Run | Jun Mat Min Robot Analysis Total . | . . . Derelict Logs Recovered 1 | . . 1 Drone Launches . | . . . Drone Recoveries . | . . . Exploration | -11 -10 -10 ------------- Run | Jun Mat Min Turns Passed 1500 | 72 1177 251 Spaces Moved 706 | 52 528 126 Core 8 | 8 . . Treads . | . . . Legs 474 | 42 432 . Wheels 211 | 2 96 113 Hover . | . . . Flight 13 | . . 13 Fastest Speed 45 | 50 120 45 Average Speed 178 | 107 180 197 Slowest Speed 750 | 120 750 215 Overloaded Moves . | . . . Propulsion Burnouts . | . . . Robots Hopped . | . . . Cave-ins Triggered . | . . . Exploration Rate (%) 36 | 5 70 35 Regions Visited 2 Branch Regions 1 Pre-discovered Areas . | . . . Known Exits Taken . | . . . Unknown Exits Taken 2 | 1 1 . Scrap Searched 1 | . . 1 Spaces Dug . | . . . Terrain Destroyed . | . . . Melee . | . . . Projectile . | . . . AOE . | . . . Terrain Rammed . | . . . Walls Destroyed . | . . . Machines Disabled . | . . . Actions | -11 -10 -10 --------- Run | Jun Mat Min Total 835 | 66 640 129 Wait 21 | . 21 . Move 704 | 51 527 126 Hop . | . . . Pick Up 13 | 4 9 . Fast Attach 12 | 7 5 . Attach 4 | 1 2 1 Detach 5 | 2 2 1 Swap 6 | . 6 . Drop 8 | 1 6 1 Fire 62 | . 62 . Melee . | . . . Ram . | . . . Kick . | . . . Crush . | . . . Escape Stasis . | . . . Rewire . | . . . Trap . | . . . Miscellaneous . | . . . Route ------- -11/Junkyard -10/Materials (discovered 4 exits: *Mat x3 / [*Min]) -10/Mines History --------- Turn | Location | Event 14 | -11/Junkyard | Discovered new exit (range 15) 73 | -11/Junkyard | Entered Materials 305 | -10/Materials | Build established: Mutant 594 | -10/Materials | Discovered new exit (range 16) 785 | -10/Materials | Identified exit to Materials 1233 | -10/Materials | Discovered new exit (range 6) 1250 | -10/Materials | Entered Mines 1253 | -10/Mines | Received a Mining Laser from a helpful Derelict 1333 | -10/Mines | Assembled infested the area 1489 | -10/Mines | Core integrity fell below 50% 1497 | -10/Mines | Core integrity fell below 20% 1501 | -10/Mines | Destroyed by D-53 Grenadier with Mini Grenade Launcher Last Messages --------------- my spare." 01256_ EU-R9F(g): "You're apparently new around these parts, I'll cover you." 01258_ EU-R9F(g): "Mining lasers are a lot more useful than you might think..." 01315_ System corrupted: Matter fused (-9). 01333_ ALERT: Infestation in the mines, dispatching Demolisher response squad. 01333_ System corrupted: Heat flow error (+243). 01383_ 5Z4/SA0>D5=XXT77:YHSH>|1479S6 01422_ Acquired derelict log, extracted data. Data stored: Mines entrances (x2). 01440_ Searching scrap... 01440_ Found Med. Laser. 01440_ Found 27 Matter. 01441_ Acquired 27 matter. 01442_ Extracted 30 matter. 01485_ EU-R9F(g) destroyed. 01494_ Imp. Ion Engine destroyed. 01495_ The unstable cave ceiling collapses. 01495_ Dropped Huge Storage Unit. 01496_ Assault Rifle destroyed. 01501_ Wheel destroyed. Map ----- +----------------------------------------------------+ | | | ?????????????????????????????? | | ?????????????????#####???????? | | ???????????###############???? | | ???????????####### #######??? | | ???????????## ###??? | | ???????????## !! ! ##??? | | ???????????## !! ! ##??? | | ???????????## !!! ####??? | | ???????????## ! ! # ######## | | ???????????## ######## | | ???????????###### [ #### | | ???????????###### ###### | | ???????????????## ##### | | ??######???????## ##?## | | ??######???????## ##?## ### | | ??## ###??????## ##?####### | | ??## ###??????## ##?????#### | | ?### ##??????## ##??????### | | ?### #???????## ##????????# | | ?## ###??????## ####??????? | | ?## ####????### #####?????? | | ?## ###?###### ###?????? | | ?## ####### ###??### | | ?### ##### * ######## | | ?### @ ## % ###### | | ?### [ ### | | ?## d d ### | | ?## # | | ?## [* # # | | ?## =! ### ### | | ?## != # ### #### | | ?## ## ### #### | | ?## ## ### ##?? | | ?## #### ## ##?? | | ?## ####### ##?? | | ?## ####### #?? | | ?## ###???### ??? | | ?### ####???### ## ??? | | ?#######??????## #### ??? | | ??#####???????## #### ??? | | ??????????????## ###?? ??? | | ??????????????######???# ?? | | ??????????????#####????#### ?? | | ???????????????????????#####?? | | ?????????????????????????????? | | ?????????????????????????????? | | ?????????????????????????????? | | ?????????????????????????????? | | ?????????????????????????????? | +----------------------------------------------------+ Best States ------------- Heat Dissipation 25 Energy Generation 12 Energy Capacity 265 Matter Stores 300 Matter Capacity 300 Sight Range 16 Terrain Scan Density 10 Armor Coverage 225 Evasion (%) 61 Item Schematics ----------------- None Robot Schematics ------------------ None Fabricated ------------ Nothing Alien Tech Used ----------------- None Achievements -------------- None Challenges ------------ None Game ------ Seed MissileHoverAutocannon Manual? 0 Play Time 00:11:59 Cumulative 114.1 hours Start 2023.03.18 @ 02:03:20 End 2023.03.18 @ 02:15:20 Sessions 1 Manual Loads 0 Difficulty Rogue Special Mode None Game No. 70 Rogue 70 Adventurer 0 Explorer 0 Win Type - Total 0 Types 0/0/0/0/0/0/0/0/0 Lore% 43 Gallery% 54 Achievement% 42 Wizard Run 0 Options --------- ASCII 0 Keyboard 1 Movement Vi Keybinds 0 Fullscreen 1 Font 12/Smallcaps Map View 83x54 Tactical HUD 1 Map Filters NONE Filters NONE Steam 1 RUN: a8ba000c-bb89-4820-88b9-485c8d09f474